bitfinex/quotes_BTCUSD_20240723
["timestamp","ask_amount","ask_price","bid_price","bid_amount"]
[1721746227984,0.01584,67329.0,67328.0,0.445579]
[1721746228193,0.02784,67329.0,67328.0,0.446579]
[1721746228442,0.02784,67329.0,67328.0,0.149526]
[1721746228851,0.02784,67329.0,67328.0,0.446579]
[1721746229697,0.02784,67329.0,67328.0,0.149526]
[1721746230216,0.02784,67329.0,67328.0,0.446579]
[1721746230424,0.02784,67329.0,67328.0,0.743632]
[1721746230635,0.02784,67329.0,67328.0,0.446579]
[1721746231014,0.02784,67329.0,67328.0,0.001]
[1721746231226,0.473412,67329.0,67328.0,0.001]
[1721746231424,0.84836,67329.0,67328.0,0.001]
[1721746231626,0.651312,67329.0,67328.0,0.001]
[1721746231844,0.12784,67329.0,67328.0,0.001]
[1721746232216,0.02784,67329.0,67328.0,0.743632]
[1721746232453,0.02784,67329.0,67328.0,0.97383692]
[1721746232685,0.02784,67329.0,67328.0,1.32088992]
[1721746233131,0.02784,67329.0,67328.0,1.27088992]
[1721746233598,0.01584,67329.0,67328.0,1.31988992]
[1721746233825,0.01584,67329.0,67328.0,1.32088992]
[1721746234088,0.00284,67329.0,67328.0,1.42088992]
[1721746234325,0.00284,67329.0,67328.0,1.32088992]
[1721746235435,0.00284,67329.0,67328.0,1.42088992]
[1721746235654,0.00284,67329.0,67328.0,1.31988992]
[1721746236301,0.00284,67329.0,67328.0,1.32388992]
[1721746236524,0.00284,67329.0,67328.0,0.53276401]
[1721746237381,0.00284,67329.0,67328.0,0.08718501]
[1721746237596,0.299888,67329.0,67328.0,0.08718501]
[1721746237823,0.297069,67325.0,67318.0,0.000924]
[1721746238032,0.148546,67319.0,67318.0,0.000924]
[1721746238442,0.29708,67322.0,67318.0,0.000924]
[1721746238651,0.07348942,67323.0,67318.0,0.000924]
[1721746238652,0.148544,67320.0,67318.0,0.000924]
[1721746238914,0.148546,67319.0,67318.0,0.000924]
[1721746239124,0.0659,67319.0,67318.0,0.000924]
[1721746239336,0.376966,67325.0,67318.0,0.000924]
[1721746239545,0.148536,67324.0,67318.0,0.000924]
[1721746239754,0.0799,67325.0,67318.0,0.000924]
[1721746239755,0.014,67325.0,67323.0,0.148536]
[1721746239972,0.014,67325.0,67320.0,0.0648]
[1721746240179,0.014,67325.0,67318.0,0.000924]
[1721746240400,0.445632,67320.0,67319.0,0.08427763]
[1721746240607,0.445638,67319.0,67318.0,0.000924]
[1721746240834,0.74273,67319.0,67318.0,0.000924]
[1721746241110,1.286122,67319.0,67318.0,0.001924]
[1721746241530,1.286122,67319.0,67318.0,0.000924]
[1721746242173,1.43314191,67319.0,67318.0,0.000924]
[1721746242415,0.98903,67319.0,67318.0,0.000924]
[1721746242632,0.705938,67319.0,67318.0,0.000924]
[1721746242843,1.00303,67319.0,67318.0,0.000924]
[1721746243287,0.014,67319.0,67318.0,0.000924]
[1721746244225,0.75673,67319.0,67318.0,0.000924]
[1721746244467,1.103422,67319.0,67318.0,0.000924]
[1721746244711,1.75793391,67319.0,67318.0,0.001924]
[1721746244941,0.066,67303.0,67293.0,0.002794]
[1721746245176,0.066,67303.0,67294.0,0.0832893]
[1721746245416,0.148593,67298.0,67295.0,0.002794]
[1721746245646,0.148593,67298.0,67291.0,0.224207]
[1721746245881,0.05,67300.0,67292.0,0.08345119]
[1721746246110,0.05,67300.0,67293.0,0.08624519]
[1721746246353,0.05,67300.0,67294.0,0.23205219]
[1721746246563,0.05,67300.0,67294.0,0.148601]
[1721746246778,0.05,67300.0,67293.0,0.148603]
[1721746247211,0.05,67300.0,67291.0,0.0756]
[1721746247212,0.148595,67297.0,67291.0,0.0756]
[1721746247431,0.05,67300.0,67276.0,0.1517168]
[1721746247432,0.07348942,67294.0,67276.0,0.1517168]
[1721746247684,0.07348942,67294.0,67277.0,0.002794]
[1721746247685,0.13458942,67287.0,67277.0,0.002794]
[1721746247894,0.13458942,67287.0,67269.0,0.14981391]
[1721746247895,0.08233894,67287.0,67269.0,0.14981391]
[1721746248107,0.14864,67277.0,67269.0,0.14701991]
[1721746248319,0.14864,67277.0,67263.0,0.297337]
[1721746248320,0.297304,67272.0,67262.0,0.0638]
[1721746248541,0.297257,67282.0,67263.0,0.14701991]
[1721746248749,0.297277,67278.0,67265.0,0.148665]
[1721746249010,0.148651,67272.0,67263.0,0.29568891]
[1721746249226,0.14701991,67284.0,67264.0,0.002794]
[1721746249227,0.09643287,67283.0,67264.0,0.002794]
[1721746249470,0.09643287,67283.0,67259.0,0.009207]
[1721746249471,0.297313,67270.0,67263.0,0.002794]
[1721746249679,0.0647,67281.0,67259.0,0.15622691]
[1721746249680,0.0825,67272.0,67259.0,0.15622691]
[1721746249896,0.0825,67272.0,67263.0,0.148669]
[1721746250105,0.148654,67270.0,67262.0,0.148671]
[1721746250316,0.148654,67270.0,67259.0,0.15622691]
[1721746250317,0.0825,67272.0,67259.0,0.15622691]
[1721746250535,0.0825,67272.0,67261.0,0.297348]
[1721746250747,0.0825,67272.0,67259.0,0.15622691]
[1721746250966,0.0825,67272.0,67261.0,0.148674]
[1721746251179,0.014,67272.0,67262.0,0.14981391]
[1721746251623,0.148639,67277.0,67269.0,0.148655]
[1721746251843,0.14864,67277.0,67268.0,0.148658]
[1721746252073,0.30551139,67287.0,67273.0,0.148647]
[1721746252074,0.1,67283.0,67273.0,0.148647]
[1721746252290,0.014,67272.0,67271.0,0.445956]
[1721746252928,0.014,67272.0,67269.0,0.14701991]
[1721746253140,0.014,67272.0,67270.0,0.297309]
[1721746253366,0.014,67272.0,67267.0,0.29732]
[1721746253581,0.148642,67276.0,67268.0,0.148658]
[1721746253788,0.445913,67278.0,67269.0,0.148656]
[1721746254027,0.014,67277.0,67270.0,0.148653]
[1721746254241,0.162639,67277.0,67268.0,0.298316]
[1721746254450,0.162639,67277.0,67268.0,0.001]
[1721746254451,0.014,67277.0,67268.0,0.001]
[1721746254669,0.148656,67269.0,67268.0,0.001]
[1721746255103,0.743282,67269.0,67268.0,0.001]
[1721746255328,0.148659,67268.0,67259.0,0.009207]
[1721746255537,0.297313,67269.0,67259.0,0.009207]
[1721746255538,0.148662,67267.0,67259.0,0.157884]
[1721746255747,0.148659,67268.0,67260.0,0.002794]
[1721746256176,0.297318,67268.0,67259.0,0.009207]
[1721746256389,0.297333,67265.0,67260.0,0.002794]
[1721746256660,0.297333,67265.0,67259.0,0.009207]
[1721746256661,0.297327,67266.0,67259.0,0.009207]
[1721746257076,0.148673,67262.0,67259.0,0.009207]
[1721746257306,0.297327,67266.0,67259.0,0.009207]
[1721746257520,0.0751,67269.0,67259.0,0.009207]
[1721746257732,0.148673,67262.0,67259.0,0.009207]
[1721746257936,0.148676,67260.0,67259.0,0.009207]
[1721746258972,0.148675,67261.0,67259.0,0.009207]
[1721746259180,0.001,67262.0,67259.0,0.009207]
[1721746259642,0.148675,67261.0,67259.0,0.009207]
[1721746260606,0.148672,67262.0,67259.0,0.009207]
[1721746260834,0.148676,67260.0,67259.0,0.009207]
[1721746261086,0.148676,67260.0,67259.0,0.010207]
[1721746261306,0.446029,67260.0,67259.0,0.010207]
[1721746261517,0.446029,67260.0,67259.0,0.009207]
[1721746261992,0.743382,67260.0,67259.0,0.009207]
[1721746262214,0.148676,67260.0,67259.0,0.009207]
[1721746262694,0.148676,67260.0,67259.0,0.010207]
[1721746263940,0.446029,67260.0,67259.0,0.010207]
[1721746264151,0.148673,67262.0,67259.0,0.010207]
[1721746264394,0.148666,67265.0,67259.0,0.010207]
[1721746264603,0.148668,67264.0,67259.0,0.010207]
[1721746264815,0.297333,67265.0,67260.0,0.002794]
[1721746265045,0.148676,67260.0,67259.0,0.009207]
[1721746265253,0.446029,67260.0,67259.0,0.009207]
[1721746265474,0.743382,67260.0,67259.0,0.009207]
[1721746265945,0.446029,67260.0,67259.0,0.009207]
[1721746266182,0.148675,67261.0,67259.0,0.009207]
[1721746266414,0.14701991,67268.0,67259.0,0.009207]
[1721746266623,0.297336,67264.0,67259.0,0.009207]
[1721746266883,0.148671,67263.0,67259.0,0.009207]
[1721746267093,0.1,67269.0,67259.0,0.009207]
[1721746267343,0.148648,67273.0,67265.0,0.148665]
[1721746267621,0.44093655,67279.0,67267.0,0.05]
[1721746267873,0.44093655,67279.0,67264.0,0.0795]
[1721746267874,0.0829,67287.0,67275.0,0.148642]
[1721746268141,0.0829,67287.0,67276.0,0.448717]
[1721746268142,0.380138,67287.0,67276.0,0.448717]
[1721746268390,0.0638,67290.0,67276.0,0.743205]
[1721746268689,0.44093655,67286.0,67265.0,0.0621]
[1721746268936,0.148661,67267.0,67266.0,0.002794]
[1721746269169,0.003,67273.0,67263.0,0.297336]
[1721746269379,0.00084,67277.0,67264.0,0.00576687]
[1721746269587,0.00084,67277.0,67272.0,0.148649]
[1721746269794,0.01384,67277.0,67272.0,0.148649]
[1721746270004,0.01384,67277.0,67276.0,0.148641]
[1721746270226,0.01384,67277.0,67276.0,0.445923]
[1721746270434,0.01384,67277.0,67276.0,0.743205]
[1721746270659,0.01384,67277.0,67266.0,0.14701991]
[1721746270868,0.01384,67277.0,67274.0,0.148644]
[1721746271075,0.01384,67277.0,67275.0,0.29566191]
[1721746271278,0.01384,67277.0,67275.0,0.14701991]
[1721746271496,0.00484,67277.0,67275.0,0.14701991]
[1721746271968,0.00084,67277.0,67276.0,0.148641]
[1721746272391,0.00484,67277.0,67260.0,0.05]
[1721746272604,0.00484,67277.0,67266.0,0.002794]
[1721746272605,0.07348942,67276.0,67266.0,0.002794]
[1721746272859,0.148648,67273.0,67266.0,0.148662]
[1721746273101,0.0602,67276.0,67267.0,0.002794]
[1721746273102,0.297291,67274.0,67267.0,0.002794]
[1721746273346,0.208843,67276.0,67266.0,0.297325]
[1721746273602,0.148646,67274.0,67267.0,0.002794]
[1721746273815,0.297284,67276.0,67267.0,0.151455]
[1721746274032,0.00884,67277.0,67268.0,0.14701991]
[1721746274243,0.00884,67277.0,67275.0,0.148642]
[1721746274465,0.00884,67277.0,67276.0,0.148641]
[1721746274694,0.00484,67277.0,67272.0,0.2973]
[1721746274926,0.00484,67277.0,67275.0,0.148643]
[1721746275414,0.00484,67277.0,67273.0,0.297293]
[1721746275415,0.00084,67277.0,67273.0,0.297293]
[1721746275617,0.00084,67277.0,67275.0,0.148643]
[1721746275845,0.00484,67277.0,67273.0,0.148647]
[1721746276059,0.002,67276.0,67275.0,0.148643]
[1721746276520,0.00484,67277.0,67276.0,0.445923]
[1721746276521,0.00084,67277.0,67276.0,0.445923]
[1721746276748,0.00484,67277.0,67276.0,0.148641]
[1721746276950,0.00484,67277.0,67273.0,0.297295]
[1721746277154,0.00084,67277.0,67275.0,0.297287]
[1721746277366,0.00084,67277.0,67276.0,0.151435]
[1721746277580,0.00084,67277.0,67275.0,0.148643]
[1721746277781,0.00084,67277.0,67276.0,0.151435]
[1721746277985,0.00084,67277.0,67271.0,0.297304]
[1721746277986,0.00484,67277.0,67271.0,0.297304]
[1721746278189,0.00484,67277.0,67272.0,0.002794]
[1721746278399,0.00484,67277.0,67263.0,0.0607]
[1721746278400,0.148644,67275.0,67266.0,0.297324]
[1721746278602,0.00484,67277.0,67263.0,0.0607]
[1721746278603,0.00484,67277.0,67267.0,0.14981391]
[1721746278805,0.002,67276.0,67267.0,0.002794]
[1721746279029,0.002,67276.0,67270.0,0.148654]
[1721746279256,0.002,67276.0,67271.0,0.002794]
[1721746279257,0.148642,67276.0,67271.0,0.002794]
[1721746279533,0.148642,67276.0,67269.0,0.151449]
[1721746279952,0.302121,67277.0,67269.0,0.002794]
[1721746280164,0.148648,67273.0,67265.0,0.002794]
[1721746280371,0.01,67276.0,67268.0,0.297317]
[1721746280642,0.00084,67277.0,67269.0,0.14981391]
[1721746280879,0.00084,67277.0,67272.0,0.297299]
[1721746281125,0.00084,67277.0,67275.0,0.148643]
[1721746281367,0.00084,67277.0,67276.0,0.59294291]
[1721746281597,0.00084,67277.0,67276.0,0.95052491]
[1721746282098,0.00084,67277.0,67276.0,0.65324291]
[1721746282575,0.00084,67277.0,67276.0,0.95052491]
[1721746282805,0.00984,67277.0,67276.0,0.95052491]
[1721746283269,0.00684,67277.0,67276.0,0.95052491]
[1721746283505,0.00084,67277.0,67276.0,0.35596091]
[1721746283966,0.00084,67277.0,67266.0,0.15]
[1721746283967,0.00884,67277.0,67264.0,0.433234]
[1721746284234,0.00884,67277.0,67265.0,0.23320714]
[1721746284235,0.297283,67276.0,67265.0,0.23320714]
[1721746284476,0.148646,67274.0,67265.0,0.14981391]
[1721746284700,0.148646,67274.0,67267.0,0.14866]
[1721746284929,0.363786,67276.0,67268.0,0.002794]
[1721746284930,0.0665,67276.0,67268.0,0.002794]
[1721746285169,0.215141,67276.0,67269.0,0.148655]
[1721746285416,0.215141,67276.0,67270.0,0.002794]
[1721746285934,0.297287,67275.0,67270.0,0.002794]
[1721746286139,0.297287,67275.0,67265.0,0.14701991]
[1721746286140,0.148644,67275.0,67268.0,0.148658]
[1721746286377,0.00484,67277.0,67271.0,0.148652]
[1721746286637,0.012,67276.0,67272.0,0.002794]
[1721746286862,0.00084,67277.0,67271.0,0.148652]
[1721746287120,0.00984,67277.0,67272.0,0.14981391]
[1721746287325,0.00984,67277.0,67275.0,0.44593]
[1721746287326,0.011,67276.0,67275.0,0.44593]
[1721746287949,0.023,67276.0,67275.0,0.148643]
[1721746288391,0.023,67276.0,67275.0,0.44593]
[1721746288812,0.023,67276.0,67275.0,0.148643]
[1721746289228,0.012,67276.0,67275.0,0.148643]
[1721746289436,0.012,67276.0,67275.0,0.44593]
[1721746289659,0.012,67276.0,67273.0,0.148647]
[1721746290273,0.012,67276.0,67263.0,0.05813524]
[1721746290274,0.003,67276.0,67275.0,0.148643]
[1721746290486,0.003,67276.0,67275.0,0.44593]
[1721746290743,0.003,67276.0,67275.0,0.743217]
[1721746290948,0.017,67276.0,67275.0,0.743217]
[1721746291427,0.017,67276.0,67275.0,0.148643]
[1721746291648,0.017,67276.0,67275.0,0.89023691]
[1721746292341,0.003,67276.0,67275.0,1.18752391]
[1721746292596,0.006,67276.0,67275.0,0.59294991]
[1721746292836,0.006,67276.0,67275.0,0.29566291]
[1721746293079,0.006,67276.0,67267.0,0.297322]
[1721746293080,0.006,67276.0,67271.0,0.148652]
[1721746293338,0.006,67276.0,67272.0,0.002794]
[1721746294068,0.006,67276.0,67272.0,0.151444]
[1721746294069,0.003,67276.0,67272.0,0.151444]
[1721746294305,0.003,67276.0,67272.0,0.14865]
[1721746294566,0.006,67276.0,67272.0,0.14865]
[1721746295064,0.003,67276.0,67272.0,0.14865]
[1721746295270,0.003,67276.0,67270.0,0.297309]
[1721746295271,0.006,67276.0,67270.0,0.297309]
[1721746295477,0.003,67276.0,67274.0,0.148645]
[1721746295688,0.003,67276.0,67270.0,0.44432891]
[1721746295920,0.003,67276.0,67275.0,0.148643]
[1721746295921,0.006,67276.0,67275.0,0.148643]
[1721746296135,0.006,67276.0,67271.0,0.44432391]
[1721746296345,0.006,67276.0,67273.0,0.148647]
[1721746296551,0.003,67276.0,67274.0,0.08398682]
[1721746296753,0.006,67276.0,67275.0,0.08398682]
[1721746296962,0.009,67276.0,67275.0,0.08398682]
[1721746297376,0.006,67276.0,67275.0,0.08398682]
[1721746297595,0.445923,67276.0,67275.0,0.08398682]
[1721746297819,0.0695,67276.0,67268.0,0.148658]
[1721746298026,0.148649,67273.0,67269.0,0.08709566]
[1721746298233,0.148644,67275.0,67270.0,0.08430166]
[1721746298454,0.148646,67274.0,67271.0,0.08709566]
[1721746298712,0.0695,67276.0,67271.0,0.08709566]
[1721746298713,0.0695,67276.0,67272.0,0.08430166]
[1721746298920,0.0695,67276.0,67266.0,0.29568291]
[1721746298921,0.297292,67274.0,67273.0,0.08461058]
[1721746299132,0.743229,67274.0,67273.0,0.08461058]
[1721746299346,0.445937,67274.0,67273.0,0.08461058]
[1721746299559,0.148643,67275.0,67273.0,0.08461058]
[1721746299783,0.148644,67275.0,67274.0,0.08461058]
[1721746300209,0.00084,67277.0,67274.0,0.08461058]
[1721746300425,0.00084,67277.0,67276.0,0.148641]
[1721746300637,0.00084,67277.0,67276.0,0.23325158]
[1721746301942,0.00084,67277.0,67276.0,0.23384414]
[1721746302369,0.00084,67277.0,67276.0,0.53409854]
[1721746303049,0.00484,67277.0,67276.0,0.97542805]
[1721746303463,0.00484,67277.0,67276.0,2.32651005]
[1721746303691,0.00484,67277.0,67276.0,2.46318617]
[1721746303903,0.00484,67277.0,67276.0,2.86046817]
[1721746304109,0.00884,67277.0,67276.0,2.86046817]
[1721746304955,0.00884,67277.0,67276.0,2.74627477]
[1721746305186,0.00884,67277.0,67276.0,2.85943595]
[1721746305603,0.00884,67277.0,67276.0,1.41599277]
[1721746305812,0.00484,67277.0,67276.0,1.52915395]
[1721746306021,0.00484,67277.0,67276.0,1.57915395]
[1721746306462,0.00784,67277.0,67276.0,1.46599277]
[1721746306674,0.00384,67277.0,67276.0,2.61627477]
[1721746306881,0.00384,67277.0,67276.0,2.72943595]
[1721746307086,0.00484,67277.0,67276.0,2.73043595]
[1721746307769,0.00384,67277.0,67276.0,1.99943595]
[1721746307973,0.00384,67277.0,67276.0,2.00051883]
[1721746308180,0.00384,67277.0,67276.0,1.88782381]
[1721746308388,0.00484,67277.0,67276.0,2.00151883]
[1721746308590,0.00184,67277.0,67276.0,2.00151883]
[1721746308796,0.00184,67277.0,67276.0,3.15880083]
[1721746309009,0.00017533,67277.0,67276.0,3.25880083]
[1721746309841,0.00117533,67277.0,67276.0,2.96151883]
[1721746310079,0.00117533,67277.0,67276.0,3.34782381]
[1721746310819,0.07348942,67303.0,67296.0,0.148595]
[1721746311031,0.58951655,67304.0,67296.0,0.148595]
[1721746311239,0.58951655,67304.0,67296.0,0.148596]
[1721746311442,0.14858,67304.0,67296.0,0.148596]
[1721746311876,0.378652,67306.0,67293.0,0.297206]
[1721746312082,0.07348942,67303.0,67296.0,0.148596]
[1721746312291,0.22207142,67303.0,67295.0,0.148598]
[1721746312503,0.07348942,67296.0,67277.0,0.052794]
[1721746312716,0.07348942,67296.0,67279.0,0.297269]
[1721746312717,0.297203,67294.0,67279.0,0.297269]
[1721746312945,0.0773,67295.0,67282.0,0.148627]
[1721746312946,0.14861,67290.0,67282.0,0.148627]
[1721746313177,0.0613,67293.0,67283.0,0.23366375]
[1721746313178,0.297214,67292.0,67283.0,0.23366375]
[1721746313387,0.0613,67293.0,67285.0,0.14862]
[1721746313591,0.209905,67293.0,67286.0,0.23365675]
[1721746313804,0.0773,67295.0,67287.0,0.14999197]
[1721746314019,0.0665,67298.0,67295.0,0.148598]
[1721746314243,0.0665,67298.0,67294.0,0.148601]
[1721746315088,0.005,67295.0,67294.0,0.148601]
[1721746315282,0.005,67295.0,67294.0,0.59282391]
[1721746315494,0.083,67308.0,67299.0,0.297179]
[1721746315702,0.083,67308.0,67303.0,0.148581]
[1721746315913,0.083,67308.0,67303.0,0.297162]
[1721746316124,0.0605,67310.0,67303.0,0.297162]
[1721746316125,0.0605,67310.0,67304.0,0.148577]
[1721746316336,0.297093,67319.0,67304.0,0.148577]
[1721746316337,0.0619,67316.0,67310.0,0.148566]
[1721746316536,0.0619,67316.0,67310.0,0.148564]
[1721746316953,0.210453,67316.0,67308.0,0.148569]
[1721746317157,0.210453,67316.0,67308.0,0.14701991]
[1721746317158,0.0619,67316.0,67308.0,0.14701991]
[1721746317363,0.210454,67316.0,67308.0,0.29558991]
[1721746317571,0.0619,67316.0,67311.0,0.148563]
[1721746317784,0.0619,67316.0,67310.0,0.148566]
[1721746317991,0.0624,67321.0,67311.0,0.14999085]
[1721746318264,0.36651273,67329.0,67320.0,0.297086]
[1721746318265,0.00284,67329.0,67320.0,0.297086]
[1721746318476,0.151365,67329.0,67321.0,0.14854]
[1721746318679,0.00284,67329.0,67321.0,0.14854]
[1721746318896,0.00284,67329.0,67322.0,0.148539]
[1721746319099,0.00284,67329.0,67323.0,0.148537]
[1721746319513,0.00284,67329.0,67322.0,0.148539]
[1721746319932,0.00284,67329.0,67323.0,0.148536]
[1721746320355,0.00284,67329.0,67322.0,0.445616]
[1721746320594,0.00284,67329.0,67322.0,0.148538]
[1721746320803,0.00284,67329.0,67323.0,0.14701991]
[1721746320804,0.08432942,67329.0,67323.0,0.14701991]
[1721746321021,0.08432942,67329.0,67324.0,0.29707]
[1721746321022,0.01384,67329.0,67324.0,0.29707]
[1721746321257,0.01384,67329.0,67328.0,0.445579]
[1721746321507,0.02384,67329.0,67328.0,0.445579]
[1721746321746,0.00284,67329.0,67328.0,0.445579]
[1721746321997,0.00784,67329.0,67328.0,0.148526]
[1721746322208,0.00784,67329.0,67318.0,0.297093]
[1721746322209,0.00784,67329.0,67319.0,0.297092]
[1721746322415,0.151364,67329.0,67322.0,0.148539]
[1721746322626,0.151364,67329.0,67320.0,0.14701991]
[1721746322627,0.00284,67329.0,67320.0,0.14701991]
[1721746322847,0.00284,67329.0,67322.0,0.148539]
[1721746322848,0.151365,67329.0,67322.0,0.148539]
[1721746323069,0.00284,67329.0,67322.0,0.297079]
[1721746323274,0.00284,67329.0,67327.0,0.148528]
[1721746323688,0.00884,67329.0,67328.0,0.148526]
[1721746323901,0.01384,67329.0,67328.0,0.445579]
[1721746324115,0.01384,67329.0,67327.0,0.148527]
[1721746324328,0.00284,67329.0,67328.0,0.148526]
[1721746324762,0.01384,67329.0,67326.0,0.14701991]
[1721746324978,0.01384,67329.0,67328.0,0.148526]
[1721746325198,0.00884,67329.0,67328.0,0.148526]
[1721746325406,0.00884,67329.0,67328.0,0.445579]
[1721746325407,0.00284,67329.0,67328.0,0.445579]
[1721746325873,0.00784,67329.0,67328.0,0.445579]
[1721746326091,0.00784,67329.0,67328.0,0.59259891]
[1721746326303,0.00784,67329.0,67328.0,0.88965191]
[1721746326510,0.00784,67329.0,67328.0,0.59259891]
[1721746326742,0.00784,67329.0,67327.0,0.148528]
[1721746326948,0.00784,67329.0,67328.0,0.148526]
[1721746327157,0.00784,67329.0,67328.0,0.445579]
[1721746327366,0.00784,67329.0,67328.0,0.88965191]
[1721746327853,0.01384,67329.0,67328.0,0.88965191]
[1721746328100,0.00884,67329.0,67328.0,0.59259891]
[1721746328590,0.01384,67329.0,67328.0,0.59259891]
[1721746328817,0.01384,67329.0,67328.0,0.88965191]
[1721746329522,0.01384,67329.0,67328.0,0.29554591]
[1721746329732,0.01384,67329.0,67325.0,0.297062]
[1721746329943,0.15354,67329.0,67326.0,0.14701991]
[1721746330377,0.01384,67329.0,67328.0,0.148526]
[1721746330585,0.01384,67329.0,67328.0,0.14701991]
[1721746330822,0.01384,67329.0,67328.0,0.29554591]
[1721746331028,0.01384,67329.0,67328.0,0.59259891]
[1721746331231,0.01384,67329.0,67328.0,0.14701991]
[1721746331446,0.01384,67329.0,67317.0,0.148549]
[1721746331447,0.148535,67325.0,67317.0,0.148549]
[1721746331663,0.148529,67327.0,67319.0,0.29556491]
[1721746331870,0.01384,67329.0,67319.0,0.14701991]
[1721746332081,0.310888,67329.0,67319.0,0.14701991]
[1721746332293,0.01384,67329.0,67319.0,0.14701991]
[1721746332504,0.07348942,67327.0,67310.0,0.148565]
[1721746332717,0.07348942,67327.0,67311.0,0.14701991]
[1721746332718,0.0639,67320.0,67311.0,0.14701991]
[1721746332938,0.0639,67320.0,67311.0,0.44414491]
[1721746333150,0.212444,67320.0,67313.0,0.148558]
[1721746333418,0.212444,67320.0,67314.0,0.14701991]
[1721746333419,0.0639,67320.0,67314.0,0.14701991]
[1721746333637,0.297118,67314.0,67300.0,0.297173]
[1721746333852,0.1463,67310.0,67300.0,0.14701991]
[1721746334069,0.148575,67306.0,67300.0,0.14701991]
[1721746334294,0.1463,67310.0,67300.0,0.14701991]
[1721746334295,0.294868,67310.0,67300.0,0.14701991]
[1721746334508,0.148574,67307.0,67300.0,0.14701991]
[1721746334716,0.148574,67307.0,67300.0,0.29560691]
[1721746335144,0.14857,67308.0,67302.0,0.1441]
[1721746335363,0.002,67320.0,67302.0,0.1441]
[1721746335364,0.002,67320.0,67319.0,0.148546]
[1721746335577,0.002,67320.0,67319.0,0.29556591]
[1721746335841,0.002,67320.0,67319.0,0.59265791]
[1721746336079,0.001,67320.0,67319.0,0.9752155]
[1721746336522,0.001,67320.0,67319.0,1.18684191]
[1721746336741,0.001,67320.0,67319.0,0.97594663]
[1721746336945,0.001,67320.0,67319.0,1.44603863]
[1721746337265,0.001,67320.0,67319.0,1.44603547]
[1721746337486,0.002,67320.0,67319.0,1.44603547]
[1721746337703,0.001,67320.0,67319.0,1.44603547]
[1721746337926,0.001,67320.0,67319.0,1.34603547]
[1721746338148,0.001,67320.0,67319.0,0.97594347]
[1721746338835,0.001,67320.0,67319.0,1.27303547]
[1721746339438,0.002,67320.0,67319.0,1.27303547]
[1721746339661,0.002,67320.0,67319.0,0.97594347]
[1721746339870,0.002,67320.0,67319.0,0.88974991]
[1721746340085,0.002,67320.0,67319.0,1.18684191]
[1721746340511,0.002,67320.0,67319.0,1.28129306]
[1721746341806,0.002,67320.0,67319.0,0.67894432]
[1721746342021,0.002,67320.0,67319.0,0.148546]
[1721746342233,0.002,67320.0,67319.0,0.59265791]
[1721746342443,0.002,67320.0,67319.0,1.18684191]
[1721746343109,0.002,67320.0,67319.0,1.26674191]
[1721746343331,0.001,67320.0,67319.0,1.3531901]
[1721746344013,0.001,67320.0,67319.0,1.4031901]
[1721746344235,0.001,67320.0,67319.0,1.4898901]
[1721746344693,0.001,67320.0,67319.0,1.7869821]
[1721746344935,0.001,67320.0,67319.0,1.8869821]
[1721746345138,0.001,67320.0,67319.0,2.6069821]
[1721746345575,0.003,67320.0,67319.0,2.6069821]
[1721746345803,0.002,67320.0,67319.0,2.6069821]
[1721746346024,0.00838,67333.0,67328.0,1.039685]
[1721746346261,0.00838,67333.0,67328.0,1.18670491]
[1721746346470,0.00838,67333.0,67328.0,1.27318385]
[1721746346699,0.00838,67333.0,67328.0,1.62023685]
[1721746346907,0.00838,67333.0,67328.0,1.88003685]
[1721746348472,0.00384,67329.0,67328.0,1.88903685]
[1721746348748,0.00284,67329.0,67328.0,1.88003685]
[1721746348978,0.00284,67329.0,67328.0,3.06708985]
[1721746349181,0.001,67329.0,67328.0,2.28708985]
[1721746349386,0.001,67329.0,67328.0,3.03725549]
[1721746349811,0.001,67329.0,67328.0,3.03724838]
[1721746350038,0.00838,67333.0,67332.0,2.047857]
[1721746350252,0.00838,67333.0,67332.0,3.14451144]
[1721746350455,0.00838,67333.0,67332.0,3.22721144]
[1721746350864,0.00838,67333.0,67332.0,2.48721144]
[1721746351072,0.00838,67333.0,67332.0,2.4876779]
[1721746352041,0.00838,67333.0,67332.0,1.9876779]
[1721746352263,0.00838,67333.0,67332.0,1.3737429]
[1721746352444,0.00838,67333.0,67332.0,1.28664191]
[1721746352653,0.00838,67333.0,67332.0,1.82190665]
[1721746352853,0.00938,67333.0,67332.0,1.83890665]
[1721746353400,0.00938,67333.0,67332.0,2.54490665]
[1721746353617,0.00838,67333.0,67332.0,2.71790665]
[1721746353818,0.00938,67333.0,67332.0,2.72090665]
[1721746354641,0.00838,67333.0,67332.0,2.71790665]
[1721746355068,0.00838,67333.0,67332.0,2.46049458]
[1721746355277,0.00838,67333.0,67332.0,2.42087165]
[1721746355484,0.00838,67333.0,67332.0,2.32087165]
[1721746355694,0.00838,67333.0,67332.0,2.40720601]
[1721746356103,0.00938,67333.0,67332.0,2.42120601]
[1721746356429,0.00838,67333.0,67332.0,2.40720601]
[1721746356626,0.00938,67333.0,67332.0,2.42120601]
[1721746356849,0.00938,67333.0,67332.0,2.27120601]
[1721746357093,0.00938,67333.0,67332.0,1.55120601]
[1721746357325,0.00938,67333.0,67332.0,1.71058601]
[1721746357553,0.00938,67333.0,67332.0,2.47058601]
[1721746357781,0.01038,67333.0,67332.0,2.47358601]
[1721746358013,0.01038,67333.0,67332.0,2.16158601]
[1721746358247,0.01038,67333.0,67332.0,2.15858601]
[1721746358478,0.00938,67333.0,67332.0,2.15858601]
[1721746358723,0.01038,67333.0,67332.0,2.15102498]